[Event "*** SCC Grand Prix: Titled Tuesday Blitz"]
[Site "Chess.com"]
[Date "2020.07.21"]
[Round "3"]
[White "PrinceMurad09"]
[Black "Fischerev7"]
[Result "1-0"]
[WhiteElo "2571"]
[BlackElo "2343"]
[TimeControl "180+1"]
[EndTime "10:28:57 PDT"]
[Termination "PrinceMurad09 won on time"]

1. e4 {[%clk 0:03:00.9]} 1... c5 {[%clk 0:02:59.8]} 2. Nf3 {[%clk 0:03:01.1]}
2... d6 {[%clk 0:03:00.1]} 3. d4 {[%clk 0:03:01.4]} 3... cxd4 {[%clk 0:03:01]}
4. Nxd4 {[%clk 0:03:02.3]} 4... Nf6 {[%clk 0:03:01.5]} 5. Nc3 {[%clk 0:03:02.7]}
5... a6 {[%clk 0:03:02]} 6. h3 {[%clk 0:03:02.8]} 6... e5 {[%clk 0:03:01.3]} 7.
Nde2 {[%clk 0:03:03.2]} 7... h5 {[%clk 0:03:01.5]} 8. a4 {[%clk 0:03:03.3]} 8...
Be6 {[%clk 0:02:59.8]} 9. g3 {[%clk 0:03:03]} 9... Be7 {[%clk 0:02:57.5]} 10.
Bg2 {[%clk 0:03:03.2]} 10... Nbd7 {[%clk 0:02:52.4]} 11. Be3 {[%clk 0:03:03.2]}
11... O-O {[%clk 0:02:51]} 12. Qd2 {[%clk 0:03:02.9]} 12... Rc8 {[%clk
0:02:49.4]} 13. O-O {[%clk 0:03:02.9]} 13... Nb6 {[%clk 0:02:39.9]} 14. b3
{[%clk 0:03:02.9]} 14... d5 {[%clk 0:02:12.8]} 15. Bxb6 {[%clk 0:02:34.8]} 15...
Qxb6 {[%clk 0:02:13.7]} 16. exd5 {[%clk 0:02:35.3]} 16... Bf5 {[%clk 0:01:50.4]}
17. a5 {[%clk 0:01:50.4]} 17... Qc7 {[%clk 0:01:28.7]} 18. Ra4 {[%clk
0:01:50.4]} 18... Rfd8 {[%clk 0:01:24.1]} 19. Rd1 {[%clk 0:01:49.4]} 19... Bc5
{[%clk 0:01:20.6]} 20. Kf1 {[%clk 0:01:18.6]} 20... Qd7 {[%clk 0:01:13.4]} 21.
Rh4 {[%clk 0:01:15.5]} 21... Bg6 {[%clk 0:01:01.9]} 22. Na4 {[%clk 0:01:15]}
22... Ba7 {[%clk 0:00:48.7]} 23. c4 {[%clk 0:01:15.2]} 23... Qd6 {[%clk
0:00:36.1]} 24. Nec3 {[%clk 0:00:53.4]} 24... Qb4 {[%clk 0:00:31.8]} 25. Qb2
{[%clk 0:00:41.1]} 25... Qxa5 {[%clk 0:00:29.6]} 26. Ne4 {[%clk 0:00:41.2]}
26... Nxe4 {[%clk 0:00:19.9]} 27. Bxe4 {[%clk 0:00:42.1]} 27... Qc7 {[%clk
0:00:16]} 28. Bxg6 {[%clk 0:00:41.1]} 28... fxg6 {[%clk 0:00:16.9]} 29. Re4
{[%clk 0:00:38.7]} 29... Rf8 {[%clk 0:00:17]} 30. Rd2 {[%clk 0:00:39.2]} 30...
Rf5 {[%clk 0:00:16.4]} 31. g4 {[%clk 0:00:37.7]} 31... hxg4 {[%clk 0:00:16]} 32.
hxg4 {[%clk 0:00:38.6]} 32... Rg5 {[%clk 0:00:16]} 33. d6 {[%clk 0:00:36.5]}
33... Qf7 {[%clk 0:00:14.3]} 34. c5 {[%clk 0:00:35.5]} 34... Rf8 {[%clk
0:00:13.9]} 35. Qc3 {[%clk 0:00:33.6]} 35... Qe6 {[%clk 0:00:12.9]} 36. Qc4
{[%clk 0:00:33.4]} 36... Qxc4+ {[%clk 0:00:12.6]} 37. bxc4 {[%clk 0:00:34.3]}
37... Kf7 {[%clk 0:00:13]} 38. d7 {[%clk 0:00:33.3]} 38... Rd8 {[%clk
0:00:12.3]} 39. Rd5 {[%clk 0:00:33.3]} 39... Ke6 {[%clk 0:00:11.8]} 40. f4
{[%clk 0:00:33.2]} 40... Rxg4 {[%clk 0:00:10.4]} 41. Rexe5+ {[%clk 0:00:33.7]}
41... Kf7 {[%clk 0:00:10.5]} 42. Re4 {[%clk 0:00:33.6]} 42... g5 {[%clk
0:00:09.3]} 43. Rf5+ {[%clk 0:00:31.3]} 43... Kg6 {[%clk 0:00:08.3]} 44. Rxg5+
{[%clk 0:00:28.1]} 44... Rxg5 {[%clk 0:00:08.3]} 45. fxg5 {[%clk 0:00:29]} 45...
Rxd7 {[%clk 0:00:08.9]} 46. Re5 {[%clk 0:00:25.1]} 46... Bb8 {[%clk 0:00:07.8]}
47. Rd5 {[%clk 0:00:25.4]} 47... Rf7+ {[%clk 0:00:07.4]} 48. Ke2 {[%clk
0:00:25.5]} 48... Rf5 {[%clk 0:00:07.5]} 49. Rd7 {[%clk 0:00:24.9]} 49... Rf7
{[%clk 0:00:07.2]} 50. Rd8 {[%clk 0:00:23.4]} 50... Bc7 {[%clk 0:00:06.7]} 51.
Rd5 {[%clk 0:00:22.8]} 51... Rf5 {[%clk 0:00:05.6]} 52. Rd7 {[%clk 0:00:22]}
52... Rf7 {[%clk 0:00:05.4]} 53. Rd3 {[%clk 0:00:18.8]} 53... Bf4 {[%clk
0:00:04.1]} 54. Nc3 {[%clk 0:00:18.4]} 54... Bxg5 {[%clk 0:00:04.2]} 55. Nd5
{[%clk 0:00:18.8]} 55... Bf6 {[%clk 0:00:03.6]} 56. Rg3+ {[%clk 0:00:18.7]}
56... Kf5 {[%clk 0:00:03.4]} 57. Rb3 {[%clk 0:00:17.5]} 57... Ke4 {[%clk
0:00:03]} 58. Rd3 {[%clk 0:00:15.7]} 58... g5 {[%clk 0:00:02.2]} 59. Rf3 {[%clk
0:00:14.6]} 59... g4 {[%clk 0:00:01.3]} 60. Nxf6+ {[%clk 0:00:14.2]} 1-0

[Event "*** SCC Grand Prix: Titled Tuesday Blitz"]
[Site "Chess.com"]
[Date "2020.07.21"]
[Round "3"]
[White "Sjakkerntobi"]
[Black "Rish_97"]
[Result "0-1"]
[WhiteElo "2418"]
[BlackElo "2704"]
[TimeControl "180+1"]
[EndTime "10:28:59 PDT"]
[Termination "Rish_97 won by resignation"]

1. e4 {[%clk 0:03:00.9]} 1... e5 {[%clk 0:02:58.6]} 2. Nf3 {[%clk 0:03:00.8]}
2... Nc6 {[%clk 0:02:58]} 3. Bb5 {[%clk 0:03:01.5]} 3... a6 {[%clk 0:02:58.3]}
4. Ba4 {[%clk 0:03:02.2]} 4... Nf6 {[%clk 0:02:58.8]} 5. O-O {[%clk 0:03:02.8]}
5... Be7 {[%clk 0:02:59.2]} 6. Re1 {[%clk 0:03:02.7]} 6... d6 {[%clk 0:02:59.7]}
7. h3 {[%clk 0:02:58.9]} 7... b5 {[%clk 0:02:58.2]} 8. Bb3 {[%clk 0:02:58.6]}
8... Na5 {[%clk 0:02:59.1]} 9. c3 {[%clk 0:02:55.6]} 9... Nxb3 {[%clk
0:02:58.8]} 10. axb3 {[%clk 0:02:56]} 10... Bb7 {[%clk 0:02:59.7]} 11. d3 {[%clk
0:02:55.7]} 11... O-O {[%clk 0:03:00]} 12. Nbd2 {[%clk 0:02:56.2]} 12... Nd7
{[%clk 0:02:54.5]} 13. Nf1 {[%clk 0:02:56.3]} 13... f5 {[%clk 0:02:54.1]} 14.
Ng3 {[%clk 0:02:56.5]} 14... fxe4 {[%clk 0:02:46.4]} 15. dxe4 {[%clk 0:02:55.9]}
15... Qe8 {[%clk 0:02:45.2]} 16. Ng5 {[%clk 0:02:51]} 16... Bxg5 {[%clk
0:02:23.4]} 17. Bxg5 {[%clk 0:02:51.9]} 17... Nc5 {[%clk 0:02:23.9]} 18. b4
{[%clk 0:02:47.4]} 18... Ne6 {[%clk 0:02:21.3]} 19. Qg4 {[%clk 0:02:25]} 19...
Nf4 {[%clk 0:01:58.8]} 20. Nf5 {[%clk 0:02:02.7]} 20... Ne6 {[%clk 0:01:36.1]}
21. Be7 {[%clk 0:01:54.5]} 21... Rf7 {[%clk 0:00:48]} 22. Nh6+ {[%clk
0:01:52.8]} 22... Kh8 {[%clk 0:00:48.2]} 23. Nxf7+ {[%clk 0:01:53.7]} 23... Qxf7
{[%clk 0:00:48.8]} 24. Bh4 {[%clk 0:01:49.6]} 24... g5 {[%clk 0:00:39.6]} 25.
Bg3 {[%clk 0:01:47.2]} 25... Rf8 {[%clk 0:00:39.3]} 26. h4 {[%clk 0:01:02.6]}
26... h5 {[%clk 0:00:36.8]} 27. Qf5 {[%clk 0:01:02.1]} 27... Qxf5 {[%clk
0:00:20.3]} 28. exf5 {[%clk 0:01:03]} 28... Rxf5 {[%clk 0:00:20.8]} 29. Rad1
{[%clk 0:00:56.3]} 29... gxh4 {[%clk 0:00:18.4]} 30. Bxh4 {[%clk 0:00:56.3]}
30... Nf4 {[%clk 0:00:19.1]} 31. f3 {[%clk 0:00:51.7]} 31... Kh7 {[%clk
0:00:17.5]} 32. Bg3 {[%clk 0:00:49.6]} 32... Ng6 {[%clk 0:00:11.2]} 33. Kf2
{[%clk 0:00:35.8]} 33... h4 {[%clk 0:00:11.4]} 34. Rh1 {[%clk 0:00:33.3]} 34...
Rh5 {[%clk 0:00:11.5]} 35. Bh2 {[%clk 0:00:33.6]} 35... Kg7 {[%clk 0:00:11.9]}
36. g4 {[%clk 0:00:33.1]} 36... Rh8 {[%clk 0:00:10.7]} 37. Rhe1 {[%clk
0:00:29.4]} 37... Rf8 {[%clk 0:00:10.6]} 38. Re3 {[%clk 0:00:28.4]} 38... Kh6
{[%clk 0:00:10.1]} 39. g5+ {[%clk 0:00:17.9]} 39... Kxg5 {[%clk 0:00:09]} 40.
Rg1+ {[%clk 0:00:18.6]} 40... Kh5 {[%clk 0:00:09.6]} 41. f4 {[%clk 0:00:15.8]}
41... Nxf4 {[%clk 0:00:08.9]} 42. Bxf4 {[%clk 0:00:16.3]} 42... Rxf4+ {[%clk
0:00:09.8]} 43. Ke2 {[%clk 0:00:16.6]} 43... Rf7 {[%clk 0:00:07.9]} 44. Kd3
{[%clk 0:00:12.3]} 44... Bc8 {[%clk 0:00:07.7]} 45. Re2 {[%clk 0:00:12.1]} 45...
Bf5+ {[%clk 0:00:06.9]} 46. Kd2 {[%clk 0:00:12.4]} 46... h3 {[%clk 0:00:07.1]}
47. Rh2 {[%clk 0:00:09.9]} 47... Bg4 {[%clk 0:00:06.5]} 48. Ke3 {[%clk
0:00:08.6]} 48... Kh4 {[%clk 0:00:06.8]} 49. Ke4 {[%clk 0:00:08.3]} 49... Rf4+
{[%clk 0:00:06.1]} 50. Kd5 {[%clk 0:00:08.5]} 50... Bf3+ {[%clk 0:00:06.5]} 51.
Ke6 {[%clk 0:00:05.1]} 51... Rg4 {[%clk 0:00:07.4]} 52. Rxg4+ {[%clk 0:00:05.1]}
52... Kxg4 {[%clk 0:00:07.5]} 53. Kd7 {[%clk 0:00:04.9]} 53... Bg2 {[%clk
0:00:06.8]} 54. Kxc7 {[%clk 0:00:04.6]} 54... Kg3 {[%clk 0:00:06.9]} 55. Rxh3+
{[%clk 0:00:04.3]} 55... Bxh3 {[%clk 0:00:07.2]} 56. Kxd6 {[%clk 0:00:05.2]}
56... e4 {[%clk 0:00:08.1]} 0-1

[Event "*** SCC Grand Prix: Titled Tuesday Blitz"]
[Site "Chess.com"]
[Date "2020.07.21"]
[Round "3"]
[White "Onegust"]
[Black "PavelChernomordik"]
[Result "1-0"]
[WhiteElo "2578"]
[BlackElo "2347"]
[TimeControl "180+1"]
[EndTime "10:28:59 PDT"]
[Termination "Onegust won on time"]

1. e4 {[%clk 0:03:00.9]} 1... g6 {[%clk 0:02:58.2]} 2. d4 {[%clk 0:03:00.3]}
2... Bg7 {[%clk 0:02:55.7]} 3. Nc3 {[%clk 0:03:00.9]} 3... d6 {[%clk 0:02:52.8]}
4. Be3 {[%clk 0:03:01.1]} 4... a6 {[%clk 0:02:52.1]} 5. a4 {[%clk 0:02:55.1]}
5... b6 {[%clk 0:02:51]} 6. Qd2 {[%clk 0:02:55.4]} 6... Bb7 {[%clk 0:02:50.1]}
7. Nf3 {[%clk 0:02:55.9]} 7... Nd7 {[%clk 0:02:49.2]} 8. d5 {[%clk 0:02:50.3]}
8... c6 {[%clk 0:02:40]} 9. h4 {[%clk 0:02:48.6]} 9... h6 {[%clk 0:02:37.7]} 10.
Bc4 {[%clk 0:02:41.9]} 10... c5 {[%clk 0:02:32.5]} 11. Rb1 {[%clk 0:02:22.4]}
11... Ngf6 {[%clk 0:02:30.6]} 12. Bf4 {[%clk 0:02:14]} 12... Qc7 {[%clk
0:02:26.2]} 13. O-O {[%clk 0:02:11.6]} 13... Ng4 {[%clk 0:02:17.3]} 14. Rfe1
{[%clk 0:02:11]} 14... O-O-O {[%clk 0:02:07.4]} 15. a5 {[%clk 0:01:53.2]} 15...
b5 {[%clk 0:01:54.5]} 16. Nxb5 {[%clk 0:01:51.8]} 16... axb5 {[%clk 0:01:52.6]}
17. Bxb5 {[%clk 0:01:52.7]} 17... Nde5 {[%clk 0:01:48.5]} 18. Nxe5 {[%clk
0:01:47.6]} 18... Nxe5 {[%clk 0:01:46.1]} 19. a6 {[%clk 0:01:39.8]} 19... Ba8
{[%clk 0:01:43.6]} 20. c4 {[%clk 0:01:40.2]} 20... g5 {[%clk 0:01:41]} 21. Bg3
{[%clk 0:01:24.6]} 21... gxh4 {[%clk 0:01:39.7]} 22. Bxh4 {[%clk 0:01:25.1]}
22... Rdg8 {[%clk 0:01:36.3]} 23. Kf1 {[%clk 0:01:17]} 23... Bf6 {[%clk
0:01:26.1]} 24. Bxf6 {[%clk 0:01:13.9]} 24... exf6 {[%clk 0:01:25]} 25. b4
{[%clk 0:01:13.1]} 25... Rg6 {[%clk 0:01:17.8]} 26. Qf4 {[%clk 0:01:00.3]} 26...
Kd8 {[%clk 0:01:11.5]} 27. bxc5 {[%clk 0:00:53.2]} 27... Qxc5 {[%clk 0:01:08.3]}
28. a7 {[%clk 0:00:31.6]} 28... Rhg8 {[%clk 0:01:00.4]} 29. g3 {[%clk
0:00:31.1]} 29... Ke7 {[%clk 0:00:52.4]} 30. Re3 {[%clk 0:00:14.9]} 30... Rg4
{[%clk 0:00:39.2]} 31. Qf5 {[%clk 0:00:14.7]} 31... R4g5 {[%clk 0:00:31.9]} 32.
Qh3 {[%clk 0:00:13.3]} 32... Ng4 {[%clk 0:00:29.3]} 33. Rf3 {[%clk 0:00:11]}
33... h5 {[%clk 0:00:26]} 34. Rf4 {[%clk 0:00:08.2]} 34... Re5 {[%clk
0:00:22.8]} 35. Qh4 {[%clk 0:00:07.8]} 35... Rgg5 {[%clk 0:00:19.9]} 36. Ba6
{[%clk 0:00:06.6]} 36... Kf8 {[%clk 0:00:17.1]} 37. Rb8+ {[%clk 0:00:05.1]}
37... Kg7 {[%clk 0:00:16.9]} 38. Rxa8 {[%clk 0:00:05.4]} 38... Rxe4 {[%clk
0:00:16.4]} 39. Rg8+ {[%clk 0:00:04.5]} 39... Kxg8 {[%clk 0:00:15.5]} 40. a8=Q+
{[%clk 0:00:05.4]} 40... Kg7 {[%clk 0:00:15.2]} 41. Qb7 {[%clk 0:00:01.6]} 41...
Rxf4 {[%clk 0:00:11.1]} 42. gxf4 {[%clk 0:00:02.5]} 42... Rf5 {[%clk 0:00:08.1]}
43. Qg3 {[%clk 0:00:02.2]} 43... Qd4 {[%clk 0:00:06.6]} 44. Qb1 {[%clk
0:00:02.3]} 44... Rxf4 {[%clk 0:00:04.1]} 45. Qc2 {[%clk 0:00:02.8]} 45... Rxf2+
{[%clk 0:00:03.2]} 46. Qcxf2 {[%clk 0:00:02.1]} 46... Qa1+ {[%clk 0:00:01.7]}
47. Kg2 {[%clk 0:00:02.5]} 47... Qxa6 {[%clk 0:00:01.8]} 48. Qff3 {[%clk
0:00:02.6]} 48... Qxc4 {[%clk 0:00:01.2]} 49. Qgf4 {[%clk 0:00:03.5]} 1-0

[Event "*** SCC Grand Prix: Titled Tuesday Blitz"]
[Site "Chess.com"]
[Date "2020.07.21"]
[Round "3"]
[White "goofypenguin96"]
[Black "Schack-Hugo"]
[Result "0-1"]
[WhiteElo "2367"]
[BlackElo "2174"]
[TimeControl "180+1"]
[EndTime "10:28:59 PDT"]
[Termination "Schack-Hugo won by checkmate"]

1. e4 {[%clk 0:03:00.9]} 1... c5 {[%clk 0:02:59.5]} 2. Nf3 {[%clk 0:03:00.2]}
2... d6 {[%clk 0:02:59.6]} 3. c3 {[%clk 0:02:59.4]} 3... Nf6 {[%clk 0:02:56.1]}
4. h3 {[%clk 0:02:59.9]} 4... g6 {[%clk 0:02:51.9]} 5. Bd3 {[%clk 0:02:58.9]}
5... Bg7 {[%clk 0:02:51.6]} 6. Bc2 {[%clk 0:02:59.3]} 6... O-O {[%clk
0:02:51.3]} 7. O-O {[%clk 0:02:59]} 7... Nc6 {[%clk 0:02:49.1]} 8. a3 {[%clk
0:02:59.2]} 8... Ne8 {[%clk 0:02:30.6]} 9. d4 {[%clk 0:02:58.5]} 9... cxd4
{[%clk 0:02:29.7]} 10. cxd4 {[%clk 0:02:59.4]} 10... Nc7 {[%clk 0:02:29.2]} 11.
Nc3 {[%clk 0:02:57.4]} 11... d5 {[%clk 0:02:28.8]} 12. e5 {[%clk 0:02:53.6]}
12... b6 {[%clk 0:02:13.7]} 13. Bg5 {[%clk 0:02:50.8]} 13... h6 {[%clk
0:02:12.1]} 14. Be3 {[%clk 0:02:50.1]} 14... Bb7 {[%clk 0:02:10.7]} 15. Qd2
{[%clk 0:02:50]} 15... Kh7 {[%clk 0:02:09.9]} 16. h4 {[%clk 0:02:50.2]} 16... f5
{[%clk 0:01:57.5]} 17. exf6 {[%clk 0:02:35.3]} 17... exf6 {[%clk 0:01:51.1]} 18.
h5 {[%clk 0:02:34.8]} 18... f5 {[%clk 0:01:50.5]} 19. hxg6+ {[%clk 0:02:35]}
19... Kxg6 {[%clk 0:01:49.8]} 20. g3 {[%clk 0:02:35.3]} 20... Kh7 {[%clk
0:01:07.8]} 21. Nh4 {[%clk 0:02:33]} 21... Ne7 {[%clk 0:01:01]} 22. Bf4 {[%clk
0:02:25.5]} 22... Ne6 {[%clk 0:00:59.5]} 23. Be5 {[%clk 0:02:12.4]} 23... Bxe5
{[%clk 0:00:57.5]} 24. dxe5 {[%clk 0:02:13.3]} 24... d4 {[%clk 0:00:56.6]} 25.
Ne2 {[%clk 0:02:11.1]} 25... Qd5 {[%clk 0:00:51.8]} 26. f3 {[%clk 0:02:11.2]}
26... Qxe5 {[%clk 0:00:50.9]} 27. Rae1 {[%clk 0:02:08.6]} 27... Qe3+ {[%clk
0:00:42.3]} 28. Qxe3 {[%clk 0:02:03.9]} 28... dxe3 {[%clk 0:00:41.7]} 29. Nc3
{[%clk 0:02:04]} 29... Ng6 {[%clk 0:00:18.2]} 30. Bxf5 {[%clk 0:01:58.8]} 30...
Rxf5 {[%clk 0:00:06.4]} 31. Nxf5 {[%clk 0:01:59.7]} 31... Rf8 {[%clk 0:00:05]}
32. Nh4 {[%clk 0:01:59.3]} 32... Nd4 {[%clk 0:00:02.9]} 33. Nxg6 {[%clk
0:01:14.4]} 33... Nxf3+ {[%clk 0:00:02.7]} 34. Kg2 {[%clk 0:01:11]} 34... Nxe1+
{[%clk 0:00:02.6]} 35. Kg1 {[%clk 0:01:05.6]} 35... Nf3+ {[%clk 0:00:02]} 36.
Kg2 {[%clk 0:01:05.6]} 36... Ne1+ {[%clk 0:00:02.2]} 37. Kh3 {[%clk 0:01:02.1]}
37... Rxf1 {[%clk 0:00:03.1]} 38. Nf4 {[%clk 0:01:01.9]} 38... Rh1+ {[%clk
0:00:03.2]} 39. Kg4 {[%clk 0:01:02]} 39... Bf3+ {[%clk 0:00:03.9]} 40. Kf5
{[%clk 0:01:01.7]} 40... e2 {[%clk 0:00:04.4]} 41. Ncxe2 {[%clk 0:01:01.5]}
41... Bxe2 {[%clk 0:00:05.3]} 42. Nxe2 {[%clk 0:01:02.4]} 42... Rf1+ {[%clk
0:00:05.2]} 43. Ke4 {[%clk 0:01:02]} 43... Rf2 {[%clk 0:00:06.1]} 44. Ke3 {[%clk
0:01:01.9]} 44... Rxe2+ {[%clk 0:00:06.3]} 45. Kxe2 {[%clk 0:01:01.6]} 45... Nc2
{[%clk 0:00:04.2]} 46. Kd3 {[%clk 0:00:59.9]} 46... Nxa3 {[%clk 0:00:03]} 47.
bxa3 {[%clk 0:00:59.9]} 47... Kg6 {[%clk 0:00:02.8]} 48. Kc4 {[%clk 0:01:00]}
48... Kg5 {[%clk 0:00:01.5]} 49. Kb5 {[%clk 0:01:00.5]} 49... Kg4 {[%clk
0:00:02.4]} 50. Ka6 {[%clk 0:01:01.4]} 50... Kxg3 {[%clk 0:00:03.3]} 51. Kxa7
{[%clk 0:01:02.3]} 51... h5 {[%clk 0:00:04.2]} 52. Kxb6 {[%clk 0:01:03.2]} 52...
h4 {[%clk 0:00:04.9]} 53. a4 {[%clk 0:01:04.1]} 53... h3 {[%clk 0:00:05.4]} 54.
a5 {[%clk 0:01:05]} 54... h2 {[%clk 0:00:06]} 55. Ka7 {[%clk 0:01:05.6]} 55...
h1=Q {[%clk 0:00:06.9]} 56. a6 {[%clk 0:01:06.5]} 56... Kf4 {[%clk 0:00:05.7]}
57. Kb8 {[%clk 0:01:06.2]} 57... Qh8+ {[%clk 0:00:05.8]} 58. Kb7 {[%clk
0:01:06]} 58... Qg7+ {[%clk 0:00:06.3]} 59. Kb8 {[%clk 0:01:06.5]} 59... Qf8+
{[%clk 0:00:06.9]} 60. Kb7 {[%clk 0:01:07]} 60... Qe7+ {[%clk 0:00:07.5]} 61.
Kb6 {[%clk 0:01:05.5]} 61... Qd8+ {[%clk 0:00:07.8]} 62. Kb7 {[%clk 0:01:06]}
62... Qd7+ {[%clk 0:00:08.1]} 63. Kb8 {[%clk 0:01:06.4]} 63... Qd8+ {[%clk
0:00:06.8]} 64. Kb7 {[%clk 0:01:06.4]} 64... Qd5+ {[%clk 0:00:05.6]} 65. Kb8
{[%clk 0:01:04.5]} 65... Qb5+ {[%clk 0:00:05.7]} 66. Ka7 {[%clk 0:01:04.9]}
66... Ke5 {[%clk 0:00:04.3]} 67. Ka8 {[%clk 0:01:05.3]} 67... Qc6+ {[%clk
0:00:04.2]} 68. Kb8 {[%clk 0:01:06.2]} 68... Qxa6 {[%clk 0:00:03.9]} 69. Kc7
{[%clk 0:00:59.9]} 69... Qc4+ {[%clk 0:00:04.8]} 70. Kd8 {[%clk 0:01:00.3]}
70... Qe6 {[%clk 0:00:05.7]} 71. Kc7 {[%clk 0:01:00.2]} 71... Kd5 {[%clk
0:00:05.8]} 72. Kb7 {[%clk 0:01:00]} 72... Kc5 {[%clk 0:00:05.4]} 73. Ka7 {[%clk
0:01:00.1]} 73... Qb6+ {[%clk 0:00:05.2]} 74. Ka8 {[%clk 0:01:00.1]} 74... Qb1
{[%clk 0:00:06.1]} 75. Ka7 {[%clk 0:01:00.3]} 75... Kc6 {[%clk 0:00:07]} 76. Ka6
{[%clk 0:01:01]} 76... Qb6# {[%clk 0:00:07.2]} 0-1

[Event "*** SCC Grand Prix: Titled Tuesday Blitz"]
[Site "Chess.com"]
[Date "2020.07.21"]
[Round "3"]
[White "Falia-p"]
[Black "RobertoJBM"]
[Result "0-1"]
[WhiteElo "2317"]
[BlackElo "2650"]
[TimeControl "180+1"]
[EndTime "10:29:01 PDT"]
[Termination "RobertoJBM won on time"]

1. e4 {[%clk 0:03:00.9]} 1... c6 {[%clk 0:02:58.5]} 2. Nc3 {[%clk 0:02:57.6]}
2... d5 {[%clk 0:02:59.4]} 3. Nf3 {[%clk 0:02:57.5]} 3... dxe4 {[%clk
0:02:59.2]} 4. Nxe4 {[%clk 0:02:57]} 4... Bg4 {[%clk 0:02:59.8]} 5. h3 {[%clk
0:02:54]} 5... Bxf3 {[%clk 0:02:58.3]} 6. Qxf3 {[%clk 0:02:53.5]} 6... Nd7
{[%clk 0:02:59.2]} 7. d4 {[%clk 0:02:51]} 7... Ndf6 {[%clk 0:02:58.9]} 8. Be3
{[%clk 0:02:43.2]} 8... Nxe4 {[%clk 0:02:55.9]} 9. Qxe4 {[%clk 0:02:44.1]} 9...
Nf6 {[%clk 0:02:56.5]} 10. Qf3 {[%clk 0:02:38.8]} 10... Qd5 {[%clk 0:02:54.5]}
11. Be2 {[%clk 0:02:34.3]} 11... e6 {[%clk 0:02:48.5]} 12. O-O {[%clk 0:02:31]}
12... Bd6 {[%clk 0:02:45.3]} 13. c4 {[%clk 0:02:29.2]} 13... Qxf3 {[%clk
0:02:44.4]} 14. Bxf3 {[%clk 0:02:30.1]} 14... O-O-O {[%clk 0:02:41.3]} 15. Bg5
{[%clk 0:02:29.4]} 15... Be7 {[%clk 0:02:39.1]} 16. Rfd1 {[%clk 0:02:28.4]}
16... Rhe8 {[%clk 0:02:28.6]} 17. a3 {[%clk 0:02:24.2]} 17... g6 {[%clk
0:02:23.8]} 18. Rac1 {[%clk 0:02:21.4]} 18... Kb8 {[%clk 0:02:16.8]} 19. b4
{[%clk 0:02:15.2]} 19... h5 {[%clk 0:02:04.2]} 20. Rd3 {[%clk 0:02:03.7]} 20...
Rd7 {[%clk 0:01:59.2]} 21. Rcd1 {[%clk 0:02:03.3]} 21... Red8 {[%clk 0:01:59.5]}
22. g3 {[%clk 0:01:58.5]} 22... a6 {[%clk 0:01:58.9]} 23. Kg2 {[%clk 0:01:58.5]}
23... Kc7 {[%clk 0:01:51.8]} 24. Bf4+ {[%clk 0:01:54]} 24... Bd6 {[%clk
0:01:51.7]} 25. Bg5 {[%clk 0:01:50.4]} 25... Be7 {[%clk 0:01:52]} 26. a4 {[%clk
0:01:46]} 26... Ng8 {[%clk 0:01:45.8]} 27. Bf4+ {[%clk 0:01:38.6]} 27... Bd6
{[%clk 0:01:45.9]} 28. Bd2 {[%clk 0:01:33.1]} 28... Nf6 {[%clk 0:01:42.1]} 29.
b5 {[%clk 0:01:30.5]} 29... axb5 {[%clk 0:01:36.3]} 30. axb5 {[%clk 0:01:28.9]}
30... cxb5 {[%clk 0:01:22.6]} 31. cxb5 {[%clk 0:01:28.3]} 31... Nd5 {[%clk
0:01:11.9]} 32. Ba5+ {[%clk 0:01:09.7]} 32... b6 {[%clk 0:01:10.9]} 33. Rc1+
{[%clk 0:01:05.3]} 33... Kb7 {[%clk 0:01:10.9]} 34. Bd2 {[%clk 0:00:57.2]} 34...
Be7 {[%clk 0:01:11]} 35. h4 {[%clk 0:00:40.8]} 35... Rc8 {[%clk 0:01:06]} 36.
Rxc8 {[%clk 0:00:34.9]} 36... Kxc8 {[%clk 0:01:06.9]} 37. Be3 {[%clk 0:00:19.8]}
37... Bf6 {[%clk 0:01:04.9]} 38. Bg5 {[%clk 0:00:17.2]} 38... Bxg5 {[%clk
0:01:00.9]} 39. hxg5 {[%clk 0:00:18.1]} 39... Ne7 {[%clk 0:00:52.9]} 40. Be4
{[%clk 0:00:13.7]} 40... Ra7 {[%clk 0:00:49.5]} 41. Rc3+ {[%clk 0:00:12.6]}
41... Kd7 {[%clk 0:00:49.1]} 42. f4 {[%clk 0:00:10.1]} 42... Ra4 {[%clk
0:00:46.8]} 43. Rd3 {[%clk 0:00:09.2]} 43... Kd6 {[%clk 0:00:45.7]} 44. Kf3
{[%clk 0:00:07.4]} 44... Rb4 {[%clk 0:00:42.2]} 45. g4 {[%clk 0:00:04]} 45...
hxg4+ {[%clk 0:00:41.4]} 46. Kxg4 {[%clk 0:00:04.9]} 46... Rxb5 {[%clk
0:00:39.9]} 47. Kf3 {[%clk 0:00:03.4]} 47... Rb4 {[%clk 0:00:39.4]} 48. Ke3
{[%clk 0:00:02.9]} 48... Nd5+ {[%clk 0:00:37.8]} 49. Bxd5 {[%clk 0:00:03]} 49...
Kxd5 {[%clk 0:00:38.7]} 50. Rc3 {[%clk 0:00:02.5]} 50... Kd6 {[%clk 0:00:20.8]}
51. Rc8 {[%clk 0:00:02.4]} 51... Rb1 {[%clk 0:00:15.5]} 52. Rd8+ {[%clk
0:00:01.4]} 52... Ke7 {[%clk 0:00:15.9]} 53. Rb8 {[%clk 0:00:01.2]} 53... b5
{[%clk 0:00:12.6]} 54. Rb7+ {[%clk 0:00:02.1]} 54... Kf8 {[%clk 0:00:12.9]} 55.
Ke4 {[%clk 0:00:02.4]} 55... Kg7 {[%clk 0:00:13]} 56. Ke5 {[%clk 0:00:01.5]}
56... b4 {[%clk 0:00:13.1]} 57. Kd6 {[%clk 0:00:01.4]} 57... b3 {[%clk
0:00:11.4]} 0-1